fUSD/lending_fUSD_20260612
["ID","MTS","AMOUNT","RATE_DAILY","PERIOD"]
[424851432,1781205058000,-567.54,0.00031999,120]
[424851429,1781205058000,-3556.0,0.00031938,2]
[424851433,1781205058000,-567.54,0.00031999,120]
[424851440,1781205058000,-160.76412737,0.00032,120]
[424851438,1781205058000,-648.563502,0.00032,120]
[424851441,1781205058000,-186.27637768,0.00032,120]
[424851434,1781205058000,-567.54,0.00031999,120]
[424851435,1781205058000,-567.77,0.00031999,120]
[424851427,1781205058000,-9077.0,0.00031928,10]
[424851437,1781205058000,-422.63738448,0.00032,120]
[424851439,1781205058000,-168.39780959,0.00032,120]
[424851431,1781205058000,-567.54,0.00031999,120]
[424851413,1781205058000,-247.0,0.00031582,7]
[424851424,1781205058000,-525.0,0.00031778,14]
[424851443,1781205058000,-188.29799177,0.00032,120]
[424851410,1781205058000,-150.0,0.00031582,7]
[424851412,1781205058000,-150.0,0.00031582,7]
[424851411,1781205058000,-150.0,0.00031582,7]
[424851414,1781205058000,-979.13407925,0.00031583,7]
[424851416,1781205058000,-1091.15367708,0.00031595,7]
[424851430,1781205058000,-172.14,0.00031963,2]
[424851415,1781205058000,-1132.21398289,0.00031595,7]
[424851417,1781205058000,-1111.96826026,0.00031595,7]
[424851421,1781205058000,-668.65185756,0.00031757,2]
[424851420,1781205058000,-1686.33,0.00031693,30]
[424851419,1781205058000,-3226.6831669,0.00031679,2]
[424851418,1781205058000,-485453.6382952,0.00031679,2]
[424851423,1781205058000,-531.19172529,0.00031757,2]
[424851422,1781205058000,-151.0,0.00031757,2]
[424851442,1781205058000,-160.01756653,0.00032,120]
[424851436,1781205058000,-370.15390733,0.00032,120]
[424851445,1781205058000,-188.43175159,0.00032,120]
[424851465,1781205058000,-880.0,0.00032188,30]
[424851466,1781205058000,-345.0,0.00032188,30]
[424851467,1781205058000,-206.0,0.00032188,30]
[424851468,1781205058000,-802.0,0.00032188,30]
[424851463,1781205058000,-279.0,0.00032188,30]
[424851469,1781205058000,-364.0,0.00032188,30]
[424851464,1781205058000,-269.0,0.00032188,30]
[424851471,1781205058000,-1292.0,0.00032188,30]
[424851473,1781205058000,-199.0,0.00032188,30]
[424851472,1781205058000,-241.0,0.00032188,30]
[424851475,1781205058000,-1183.3,0.0003221,5]
[424851474,1781205058000,-715.0,0.00032188,30]
[424851444,1781205058000,-190.70801845,0.00032,120]
[424851476,1781205058000,-300.0,0.00032231,10]
[424851470,1781205058000,-389.0,0.00032188,30]
[424851462,1781205058000,-248.0,0.00032188,30]
[424851477,1781205058000,-666.0,0.00032231,10]
[424851457,1781205058000,-1180.26902809,0.00032,120]
[424851461,1781205058000,-10308.5314,0.00032132,2]
[424851446,1781205058000,-175.36835639,0.00032,120]
[424851449,1781205058000,-223.68790152,0.00032,120]
[424851450,1781205058000,-180.00618676,0.00032,120]
[424851447,1781205058000,-786.84601873,0.00032,120]
[424851452,1781205058000,-205.39761631,0.00032,120]
[424851451,1781205058000,-178.04760799,0.00032,120]
[424851448,1781205058000,-549.07362877,0.00032,120]
[424851454,1781205058000,-178.25990567,0.00032,120]
[424851455,1781205058000,-195.495558,0.00032,120]
[424851456,1781205058000,-178.9503212,0.00032,120]
[424851460,1781205058000,-294.3,0.00032055,5]
[424851458,1781205058000,-185.87068678,0.00032,120]
[424851453,1781205058000,-199.36769843,0.00032,120]
[424851459,1781205058000,-184.54162468,0.00032,120]
[424851514,1781205059000,-157.635871,0.00032877,7]
[424851507,1781205059000,-157.635871,0.00032877,7]
[424851511,1781205059000,-157.635871,0.00032877,7]
[424851508,1781205059000,-157.635871,0.00032877,7]
[424851513,1781205059000,-157.635871,0.00032877,7]
[424851510,1781205059000,-157.635871,0.00032877,7]
[424851512,1781205059000,-157.635871,0.00032877,7]
[424851509,1781205059000,-157.635871,0.00032877,7]
[424851517,1781205059000,-151.0,0.00032877,7]
[424851506,1781205059000,-157.635871,0.00032877,7]
[424851518,1781205059000,-151.0,0.00032877,7]
[424851520,1781205059000,-151.0,0.00032877,7]
[424851530,1781205059000,-157.611457,0.00032877,7]
[424851519,1781205059000,-151.0,0.00032877,7]
[424851521,1781205059000,-248.67532,0.00032877,7]
[424851515,1781205059000,-157.635871,0.00032877,7]
[424851522,1781205059000,-157.611457,0.00032877,7]
[424851516,1781205059000,-151.0,0.00032877,7]
[424851524,1781205059000,-157.611457,0.00032877,7]
[424851525,1781205059000,-157.611457,0.00032877,7]
[424851527,1781205059000,-157.611457,0.00032877,7]
[424851526,1781205059000,-157.611457,0.00032877,7]
[424851505,1781205059000,-157.635871,0.00032877,7]
[424851523,1781205059000,-157.611457,0.00032877,7]
[424851504,1781205059000,-157.635871,0.00032877,7]
[424851486,1781205059000,-4356.09,0.00032378,120]
[424851499,1781205059000,-25000.0,0.00032868,10]
[424851529,1781205059000,-157.611457,0.00032877,7]
[424851481,1781205059000,-82810.49872525,0.00032232,30]
[424851478,1781205059000,-100000.0,0.00032232,120]
[424851479,1781205059000,-100000.0,0.00032232,90]
[424851480,1781205059000,-100000.0,0.00032232,60]
[424851483,1781205059000,-350.0,0.00032232,60]
[424851484,1781205059000,-248.0,0.00032232,60]
[424851482,1781205059000,-350.0,0.00032232,60]
[424851488,1781205059000,-525.0,0.00032404,15]
[424851490,1781205059000,-500.0,0.00032486,24]
[424851489,1781205059000,-167.46807175,0.00032448,2]
[424851503,1781205059000,-157.635871,0.00032877,7]
[424851491,1781205059000,-299.0,0.00032811,3]
[424851492,1781205059000,-1194.7545332,0.00032828,7]
[424851487,1781205059000,-150.0,0.00032383,2]
[424851494,1781205059000,-1050.52373651,0.00032828,7]
[424851493,1781205059000,-1058.55085757,0.00032828,7]
[424851495,1781205059000,-25000.0,0.00032833,10]
[424851496,1781205059000,-25000.0,0.00032842,10]
[424851497,1781205059000,-25000.0,0.00032851,10]
[424851498,1781205059000,-25000.0,0.00032859,10]
[424851501,1781205059000,-157.635871,0.00032877,7]
[424851502,1781205059000,-157.635871,0.00032877,7]
[424851500,1781205059000,-157.635871,0.00032877,7]
[424851485,1781205059000,-193.0,0.00032232,120]
[424851528,1781205059000,-157.611457,0.00032877,7]
[424851562,1781205059000,-151.0,0.00032877,7]
[424851533,1781205059000,-157.611457,0.00032877,7]
[424851561,1781205059000,-612.279922,0.00032877,7]
[424851563,1781205059000,-151.0,0.00032877,7]
[424851565,1781205059000,-612.279922,0.00032877,7]
[424851567,1781205059000,-612.279922,0.00032877,7]
[424851566,1781205059000,-151.0,0.00032877,7]
[424851564,1781205059000,-612.279922,0.00032877,7]
[424851569,1781205059000,-151.0,0.00032877,7]
[424851570,1781205059000,-151.0,0.00032877,7]
[424851568,1781205059000,-151.0,0.00032877,7]
[424851571,1781205059000,-184.279738,0.00032877,7]
[424851573,1781205059000,-151.0,0.00032877,7]
[424851560,1781205059000,-612.279922,0.00032877,7]
[424851577,1781205059000,-1169.79146708,0.00032877,7]
[424851576,1781205059000,-1570.0,0.00032877,30]
[424851575,1781205059000,-317.428074,0.00032877,7]
[424851578,1781205059000,-650.0,0.00032877,120]
[424851581,1781205059000,-764.015938,0.00032877,120]
[424851580,1781205059000,-597.0,0.00032877,120]
[424851579,1781205059000,-650.0,0.00032877,120]
[424851584,1781205059000,-800.0,0.00032877,12]
[424851582,1781205059000,-25000.0,0.00032877,10]
[424851585,1781205059000,-800.0,0.00032877,12]
[424851583,1781205059000,-800.0,0.00032877,12]
[424851532,1781205059000,-157.611457,0.00032877,7]
[424851574,1781205059000,-151.0,0.00032877,7]
[424851558,1781205059000,-612.279922,0.00032877,7]
[424851572,1781205059000,-151.0,0.00032877,7]
[424851555,1781205059000,-151.0,0.00032877,7]
[424851559,1781205059000,-151.0,0.00032877,7]
[424851534,1781205059000,-157.611457,0.00032877,7]
[424851536,1781205059000,-157.611457,0.00032877,7]
[424851544,1781205059000,-151.0,0.00032877,7]
[424851545,1781205059000,-284.204534,0.00032877,7]
[424851537,1781205059000,-157.611457,0.00032877,7]
[424851535,1781205059000,-157.611457,0.00032877,7]
[424851539,1781205059000,-151.0,0.00032877,7]
[424851538,1781205059000,-151.0,0.00032877,7]
[424851540,1781205059000,-151.0,0.00032877,7]
[424851541,1781205059000,-151.0,0.00032877,7]
[424851542,1781205059000,-151.0,0.00032877,7]
[424851531,1781205059000,-157.611457,0.00032877,7]
[424851546,1781205059000,-598.37897935,0.00032877,2]
[424851543,1781205059000,-151.0,0.00032877,7]
[424851557,1781205059000,-151.0,0.00032877,7]
[424851554,1781205059000,-612.279922,0.00032877,7]
[424851547,1781205059000,-151.0,0.00032877,7]
[424851552,1781205059000,-612.279922,0.00032877,7]
[424851556,1781205059000,-612.279922,0.00032877,7]
[424851553,1781205059000,-151.0,0.00032877,7]
[424851551,1781205059000,-612.279922,0.00032877,7]
[424851548,1781205059000,-197.110996,0.00032877,7]
[424851549,1781205059000,-612.279922,0.00032877,7]
[424851550,1781205059000,-612.279922,0.00032877,7]
[424851624,1781205060000,-160.0,0.00033,120]
[424851623,1781205060000,-5189.999999,0.00033,30]
[424851622,1781205060000,-184.54162468,0.00033,120]
[424851615,1781205060000,-62928.82277024,0.00033,2]
[424851618,1781205060000,-178.25990567,0.00033,120]
[424851616,1781205060000,-160.0,0.00033,120]
[424851617,1781205060000,-205.39761631,0.00033,120]
[424851621,1781205060000,-185.87068678,0.00033,120]
[424851619,1781205060000,-178.9503212,0.00033,120]
[424851625,1781205060000,-160.0,0.00033,30]
[424851620,1781205060000,-1180.26902809,0.00033,120]
[424851630,1781205060000,-151.73441514,0.00033123,120]
[424851632,1781205060000,-1570.0,0.00033151,30]
[424851635,1781205060000,-279.0,0.00033188,30]
[424851634,1781205060000,-248.0,0.00033188,30]
[424851633,1781205060000,-753.11146,0.00033177,120]
[424851631,1781205060000,-4356.09,0.00033142,120]
[424851626,1781205060000,-160.0,0.00033,10]
[424851627,1781205060000,-386.46,0.00033014,5]
[424851628,1781205060000,-525.0,0.0003303,16]
[424851636,1781205060000,-269.0,0.00033188,30]
[424851637,1781205060000,-880.0,0.00033188,30]
[424851638,1781205060000,-345.0,0.00033188,30]
[424851614,1781205060000,-178.04760799,0.00033,120]
[424851629,1781205060000,-500.0,0.00033123,120]
[424851612,1781205060000,-786.84601873,0.00033,120]
[424851639,1781205060000,-206.0,0.00033188,30]
[424851611,1781205060000,-190.70801845,0.00033,120]
[424851590,1781205060000,-800.0,0.00032877,12]
[424851587,1781205060000,-800.0,0.00032877,12]
[424851589,1781205060000,-800.0,0.00032877,12]
[424851591,1781205060000,-800.0,0.00032877,12]
[424851586,1781205060000,-333.5629737,0.00032877,12]
[424851588,1781205060000,-800.0,0.00032877,12]
[424851593,1781205060000,-800.0,0.00032877,12]
[424851601,1781205060000,-407.0,0.00032955,2]
[424851602,1781205060000,-426.80374489,0.00032955,2]
[424851600,1781205060000,-407.0,0.00032955,2]
[424851592,1781205060000,-800.0,0.00032877,12]
[424851610,1781205060000,-188.29799177,0.00033,120]
[424851594,1781205060000,-800.0,0.00032877,12]
[424851596,1781205060000,-1320.91631337,0.0003289,7]
[424851598,1781205060000,-152.0,0.00032891,7]
[424851599,1781205060000,-560.27,0.00032917,30]
[424851597,1781205060000,-1273.01262326,0.0003289,7]
[424851605,1781205060000,-422.63738448,0.00033,120]
[424851604,1781205060000,-370.15390733,0.00033,120]
[424851609,1781205060000,-160.01756653,0.00033,120]
[424851606,1781205060000,-648.563502,0.00033,120]
[424851607,1781205060000,-160.76412737,0.00033,120]
[424851608,1781205060000,-186.27637768,0.00033,120]
[424851613,1781205060000,-549.07362877,0.00033,120]
[424851595,1781205060000,-1142.32309246,0.00032878,7]
[424851640,1781205060000,-802.0,0.00033188,30]
[424851603,1781205060000,-300.0,0.00032999,10]
[424851643,1781205060000,-1292.0,0.00033188,30]
[424851675,1781205060000,-549.07362877,0.000339,120]
[424851676,1781205060000,-178.04760799,0.000339,120]
[424851673,1781205060000,-190.70801845,0.000339,120]
[424851677,1781205060000,-178.9503212,0.000339,120]
[424851674,1781205060000,-786.84601873,0.000339,120]
[424851671,1781205060000,-160.01756653,0.000339,120]
[424851678,1781205060000,-1180.26902809,0.000339,120]
[424851695,1781205060000,-151.0,0.00033973,7]
[424851680,1781205060000,-10624.1020305,0.00033903,2]
[424851679,1781205060000,-184.54162468,0.000339,120]
[424851682,1781205060000,-1451.861569,0.00033903,7]
[424851684,1781205060000,-1451.861561,0.00033903,7]
[424851683,1781205060000,-1451.861569,0.00033903,7]
[424851688,1781205060000,-157.611457,0.00033964,7]
[424851689,1781205060000,-157.611462,0.00033964,7]
[424851691,1781205060000,-151.0,0.00033964,7]
[424851690,1781205060000,-151.0,0.00033964,7]
[424851686,1781205060000,-157.611457,0.00033964,7]
[424851685,1781205060000,-4356.09,0.00033964,120]
[424851687,1781205060000,-157.611457,0.00033964,7]
[424851693,1781205060000,-385.57,0.00033973,5]
[424851692,1781205060000,-247.147394,0.00033964,7]
[424851694,1781205060000,-1570.0,0.00033973,30]
[424851696,1781205060000,-151.0,0.00033973,7]
[424851641,1781205060000,-364.0,0.00033188,30]
[424851672,1781205060000,-188.29799177,0.000339,120]
[424851670,1781205060000,-186.27637768,0.000339,120]
[424851681,1781205060000,-1451.861569,0.00033903,7]
[424851668,1781205060000,-648.563502,0.000339,120]
[424851667,1781205060000,-422.63738448,0.000339,120]
[424851644,1781205060000,-241.0,0.00033188,30]
[424851642,1781205060000,-389.0,0.00033188,30]
[424851646,1781205060000,-715.0,0.00033188,30]
[424851645,1781205060000,-199.0,0.00033188,30]
[424851647,1781205060000,-385.21502296,0.00033191,4]
[424851649,1781205060000,-650.0,0.00033356,60]
[424851656,1781205060000,-150.0,0.00033463,3]
[424851648,1781205060000,-650.0,0.00033356,60]
[424851653,1781205060000,-1686.33,0.00033364,60]
[424851651,1781205060000,-342.14413463,0.00033356,60]
[424851650,1781205060000,-642.0,0.00033356,60]
[424851652,1781205060000,-500.0,0.00033356,60]
[424851655,1781205060000,-150.33453,0.00033453,2]
[424851665,1781205060000,-150.0,0.0003386,120]
[424851658,1781205060000,-742.355382,0.00033477,120]
[424851663,1781205060000,-1284.0,0.00033777,120]
[424851666,1781205060000,-370.15390733,0.000339,120]
[424851662,1781205060000,-1300.0,0.00033777,120]
[424851660,1781205060000,-1570.0,0.00033699,30]
[424851664,1781205060000,-819.393694,0.00033777,120]
[424851659,1781205060000,-525.0,0.00033657,16]
[424851669,1781205060000,-160.76412737,0.000339,120]
[424851654,1781205060000,-1570.0,0.00033425,30]
[424851657,1781205060000,-12103.0,0.00033463,10]
[424851661,1781205060000,-1300.0,0.00033777,120]
[424851735,1781205061000,-150.0,0.00034247,2]
[424851732,1781205061000,-715.0,0.00034188,30]
[424851737,1781205061000,-299.0,0.00034247,2]
[424851736,1781205061000,-176.0,0.00034247,2]
[424851738,1781205061000,-525.0,0.00034283,17]
[424851729,1781205061000,-1292.0,0.00034188,30]
[424851733,1781205061000,-1570.0,0.00034247,30]
[424851730,1781205061000,-241.0,0.00034188,30]
[424851728,1781205061000,-389.0,0.00034188,30]
[424851731,1781205061000,-199.0,0.00034188,30]
[424851739,1781205061000,-782.212533,0.00034378,120]
[424851734,1781205061000,-297.0,0.00034247,2]
[424851741,1781205061000,-407.0,0.00034453,2]
[424851754,1781205061000,-6076.0,0.00034545,2]
[424851742,1781205061000,-407.0,0.00034453,2]
[424851749,1781205061000,-1570.0,0.00034521,30]
[424851745,1781205061000,-151.0,0.00034496,2]
[424851744,1781205061000,-693.39197629,0.00034496,2]
[424851747,1781205061000,-1274.0,0.00034502,2]
[424851746,1781205061000,-10000.0,0.000345,7]
[424851750,1781205061000,-250.0,0.00034538,7]
[424851752,1781205061000,-1227.0,0.00034545,2]
[424851751,1781205061000,-264.0,0.00034545,3]
[424851748,1781205061000,-382.0,0.00034502,2]
[424851740,1781205061000,-407.0,0.00034453,2]
[424851727,1781205061000,-364.0,0.00034188,30]
[424851743,1781205061000,-202.8,0.00034485,120]
[424851722,1781205061000,-269.0,0.00034188,30]
[424851701,1781205061000,-1314.640837,0.00033973,7]
[424851725,1781205061000,-206.0,0.00034188,30]
[424851703,1781205061000,-5000.0,0.00034,7]
[424851764,1781205061000,-161.8706584,0.00034545,60]
[424851698,1781205061000,-165.675864,0.00033973,7]
[424851700,1781205061000,-1314.640837,0.00033973,7]
[424851699,1781205061000,-1314.640837,0.00033973,7]
[424851697,1781205061000,-151.0,0.00033973,7]
[424851702,1781205061000,-1314.640837,0.00033973,7]
[424851713,1781205061000,-160.0,0.00034,120]
[424851704,1781205061000,-708.09039993,0.00034,30]
[424851714,1781205061000,-160.0,0.00034,30]
[424851706,1781205061000,-708.09039993,0.00034,30]
[424851705,1781205061000,-708.09039993,0.00034,30]
[424851711,1781205061000,-708.09039993,0.00034,60]
[424851709,1781205061000,-708.09039993,0.00034,30]
[424851710,1781205061000,-708.09039993,0.00034,60]
[424851707,1781205061000,-708.09039993,0.00034,30]
[424851712,1781205061000,-708.09039993,0.00034,60]
[424851708,1781205061000,-708.09039993,0.00034,30]
[424851715,1781205061000,-150.0,0.00034002,2]
[424851718,1781205061000,-1183.3,0.00034182,7]
[424851716,1781205061000,-757.011784,0.00034078,120]
[424851717,1781205061000,-150.0,0.00034091,120]
[424851719,1781205061000,-167.46807175,0.00034186,2]
[424851720,1781205061000,-248.0,0.00034188,30]
[424851721,1781205061000,-279.0,0.00034188,30]
[424851724,1781205061000,-345.0,0.00034188,30]
[424851723,1781205061000,-880.0,0.00034188,30]
[424851726,1781205061000,-802.0,0.00034188,30]
[424851756,1781205061000,-710.9591389,0.00034545,60]
[424851765,1781205061000,-455.7435446,0.00034545,60]
[424851759,1781205061000,-649.4414074,0.00034545,60]
[424851790,1781205061000,-1200.59855601,0.00034767,7]
[424851791,1781205061000,-154.18,0.00034783,120]
[424851799,1781205061000,-729.65644964,0.000349,2]
[424851798,1781205061000,-321.60449862,0.000349,30]
[424851793,1781205061000,-1570.0,0.00034795,30]
[424851794,1781205061000,-1500.0,0.00034795,2]
[424851796,1781205061000,-1116.21972624,0.00034898,30]
[424851797,1781205061000,-199.48738674,0.00034898,30]
[424851801,1781205061000,-1500.0,0.000349,7]
[424851792,1781205061000,-4356.09,0.00034786,120]
[424851800,1781205061000,-769.55233372,0.000349,90]
[424851795,1781205061000,-1001.0,0.00034849,120]
[424851803,1781205061000,-179.535904,0.000349,2]
[424851787,1781205061000,-1365.43375222,0.00034767,7]
[424851812,1781205061000,-382.62,0.00034931,5]
[424851802,1781205061000,-286.0,0.000349,120]
[424851813,1781205061000,-3556.0,0.00034938,2]
[424851810,1781205061000,-3031.87,0.00034928,120]
[424851808,1781205061000,-525.0,0.00034909,17]
[424851807,1781205061000,-1502.07435806,0.000349,37]
[424851805,1781205061000,-557.5788265,0.000349,37]
[424851811,1781205061000,-199.93762835,0.00034931,5]
[424851809,1781205061000,-150.0,0.00034927,120]
[424851806,1781205061000,-168.3888056,0.000349,37]
[424851815,1781205061000,-1000.0,0.00034952,2]
[424851816,1781205061000,-1000.0,0.00034952,2]
[424851753,1781205061000,-3643.0,0.00034545,2]
[424851814,1781205061000,-1000.0,0.00034952,2]
[424851804,1781205061000,-155.18434343,0.000349,37]
[424851784,1781205061000,-209.0,0.00034681,2]
[424851817,1781205061000,-1000.0,0.00034952,2]
[424851785,1781205061000,-450.28,0.00034692,2]
[424851758,1781205061000,-158.4519669,0.00034545,60]
[424851755,1781205061000,-259.6608252,0.00034545,60]
[424851760,1781205061000,-248.3337725,0.00034545,60]
[424851763,1781205061000,-373.3527346,0.00034545,60]
[424851761,1781205061000,-171.4062848,0.00034545,60]
[424851757,1781205061000,-156.2420867,0.00034545,60]
[424851762,1781205061000,-190.900207,0.00034545,60]
[424851786,1781205061000,-64767.31559185,0.00034765,120]
[424851767,1781205061000,-1406.28129704,0.000346,60]
[424851776,1781205061000,-612.279922,0.0003465,7]
[424851766,1781205061000,-168.08,0.0003459,30]
[424851771,1781205061000,-25185.8515619,0.0003465,120]
[424851774,1781205061000,-151.0,0.0003465,7]
[424851768,1781205061000,-234.0,0.00034612,3]
[424851773,1781205061000,-612.279922,0.0003465,7]
[424851772,1781205061000,-612.279922,0.0003465,7]
[424851783,1781205061000,-157.57217,0.0003468,57]
[424851782,1781205061000,-764.020321,0.00034678,120]
[424851780,1781205061000,-151.0,0.0003465,7]
[424851781,1781205061000,-200.0,0.00034671,10]
[424851789,1781205061000,-1395.20377704,0.00034767,7]
[424851788,1781205061000,-1428.7529369,0.00034767,7]
[424851779,1781205061000,-151.0,0.0003465,7]
[424851775,1781205061000,-151.0,0.0003465,7]
[424851769,1781205061000,-224.0,0.00034625,3]
[424851777,1781205061000,-151.0,0.0003465,7]
[424851770,1781205061000,-157.57216,0.0003463,57]
[424851778,1781205061000,-612.279922,0.0003465,7]
[424851858,1781205062000,-3000.0,0.00034999,31]
[424851862,1781205062000,-151.0,0.00034999,31]
[424851860,1781205062000,-200.0,0.00034999,31]
[424851861,1781205062000,-151.0,0.00034999,31]
[424851851,1781205062000,-537.6845,0.00034998,31]
[424851856,1781205062000,-1502.07435806,0.00034998,31]
[424851855,1781205062000,-162.380719,0.00034998,31]
[424851853,1781205062000,-161.0,0.00034998,3]
[424851852,1781205062000,-278.88022306,0.00034998,31]
[424851850,1781205062000,-155.18434343,0.00034998,31]
[424851854,1781205062000,-15129.0,0.00034998,10]
[424851859,1781205062000,-3000.0,0.00034999,30]
[424851875,1781205062000,-500.0,0.00034999,31]
[424851870,1781205062000,-155.18434343,0.00034999,30]
[424851872,1781205062000,-500.0,0.00034999,31]
[424851869,1781205062000,-151.0,0.00034999,31]
[424851874,1781205062000,-200.0,0.00034999,31]
[424851873,1781205062000,-500.0,0.00034999,31]
[424851871,1781205062000,-151.0,0.00034999,31]
[424851863,1781205062000,-155.18434343,0.00034999,31]
[424851866,1781205062000,-500.0,0.00034999,31]
[424851864,1781205062000,-500.0,0.00034999,31]
[424851867,1781205062000,-156.587,0.00034999,31]
[424851868,1781205062000,-250.0,0.00034999,31]
[424851865,1781205062000,-200.0,0.00034999,31]
[424851848,1781205062000,-915.96730151,0.0003499,30]
[424851857,1781205062000,-300.0,0.00034999,10]
[424851849,1781205062000,-300.0,0.00034998,10]
[424851832,1781205062000,-1000.0,0.00034952,2]
[424851845,1781205062000,-250.02,0.00034961,120]
[424851878,1781205062000,-151.0,0.00034999,31]
[424851824,1781205062000,-1000.0,0.00034952,2]
[424851823,1781205062000,-1000.0,0.00034952,2]
[424851818,1781205062000,-1000.0,0.00034952,2]
[424851819,1781205062000,-1000.0,0.00034952,2]
[424851820,1781205062000,-1000.0,0.00034952,2]
[424851822,1781205062000,-1000.0,0.00034952,2]
[424851825,1781205062000,-1000.0,0.00034952,2]
[424851835,1781205062000,-1000.0,0.00034952,2]
[424851833,1781205062000,-1000.0,0.00034952,2]
[424851834,1781205062000,-1000.0,0.00034952,2]
[424851827,1781205062000,-1000.0,0.00034952,2]
[424851830,1781205062000,-1000.0,0.00034952,2]
[424851826,1781205062000,-1000.0,0.00034952,2]
[424851829,1781205062000,-1000.0,0.00034952,2]
[424851828,1781205062000,-1000.0,0.00034952,2]
[424851831,1781205062000,-1000.0,0.00034952,2]
[424851836,1781205062000,-1000.0,0.00034952,2]
[424851837,1781205062000,-1000.0,0.00034952,2]
[424851838,1781205062000,-1008.79341403,0.00034952,2]
[424851839,1781205062000,-157.57217,0.00034952,60]
[424851841,1781205062000,-157.57216,0.00034952,60]
[424851844,1781205062000,-400.0,0.00034952,2]
[424851843,1781205062000,-400.0,0.00034952,2]
[424851842,1781205062000,-157.57217,0.00034952,60]
[424851840,1781205062000,-157.57217,0.00034952,60]
[424851846,1781205062000,-746.093689,0.00034978,120]
[424851847,1781205062000,-6954.0,0.00034986,2]
[424851883,1781205062000,-500.0,0.00034999,31]
[424851821,1781205062000,-1000.0,0.00034952,2]
[424851885,1781205062000,-500.0,0.00034999,31]
[424851911,1781205062000,-151.0,0.00034999,30]
[424851913,1781205062000,-500.0,0.00034999,31]
[424851923,1781205062000,-500.0,0.00034999,31]
[424851922,1781205062000,-500.0,0.00034999,31]
[424851916,1781205062000,-151.0,0.00034999,31]
[424851912,1781205062000,-500.0,0.00034999,31]
[424851915,1781205062000,-250.0,0.00034999,31]
[424851917,1781205062000,-168.3888056,0.00034999,31]
[424851921,1781205062000,-209.37652795,0.00034999,31]
[424851914,1781205062000,-181.08010149,0.00034999,31]
[424851920,1781205062000,-151.0,0.00034999,31]
[424851918,1781205062000,-578.20924308,0.00034999,31]
[424851919,1781205062000,-152.0,0.00034999,31]
[424851924,1781205062000,-500.0,0.00034999,31]
[424851927,1781205062000,-187.78006524,0.00034999,31]
[424851925,1781205062000,-250.0,0.00034999,31]
[424851932,1781205062000,-500.0,0.00034999,31]
[424851933,1781205062000,-500.0,0.00034999,31]
[424851926,1781205062000,-151.0,0.00034999,31]
[424851928,1781205062000,-599.60298507,0.00034999,31]
[424851937,1781205062000,-194.72792766,0.00034999,31]
[424851930,1781205062000,-152.0,0.00034999,31]
[424851929,1781205062000,-174.61919141,0.00034999,31]
[424851934,1781205062000,-500.0,0.00034999,31]
[424851931,1781205062000,-151.0,0.00034999,31]
[424851935,1781205062000,-250.0,0.00034999,31]
[424851879,1781205062000,-151.0,0.00034999,31]
[424851908,1781205062000,-557.5788265,0.00034999,31]
[424851906,1781205062000,-1870.65466908,0.00034999,31]
[424851936,1781205062000,-151.0,0.00034999,31]
[424851903,1781205062000,-151.0,0.00034999,31]
[424851902,1781205062000,-174.61919141,0.00034999,31]
[424851876,1781205062000,-162.380719,0.00034999,31]
[424851877,1781205062000,-250.0,0.00034999,31]